bitfinex/quotes_ETHUSD_20220212
["timestamp","ask_amount","ask_price","bid_price","bid_amount"]
[1644652993931,0.66575378,2931.3,2930.3,0.3]
[1644652994332,0.66575378,2931.3,2930.2,0.1705]
[1644652994630,0.66575378,2931.3,2930.3,0.00270779]
[1644652994830,0.66575378,2931.3,2930.4,0.1706]
[1644652995131,0.68727376,2930.8,2930.4,0.1706]
[1644652995330,0.68727376,2930.8,2930.6,0.03373684]
[1644652995730,0.00503158,2931.4,2930.6,0.03373684]
[1644652995933,0.00837073,2930.8,2930.6,0.03373684]
[1644652996133,0.0075626,2930.8,2930.4,0.1705]
[1644652996332,0.0075626,2930.8,2930.1,0.1706]
[1644652996733,0.67278021,2930.7,2930.1,0.1706]
[1644652996971,0.67278021,2930.7,2929.9,0.4706]
[1644652997170,0.00403158,2930.6,2929.9,0.4706]
[1644652997373,0.00503158,2931.4,2930.0,0.85313]
[1644652997574,0.00503158,2931.4,2930.1,3.97045092]
[1644652997774,0.00503158,2931.4,2930.1,0.1706]
[1644652998183,0.70280892,2930.6,2930.1,0.1706]
[1644652998376,1.60280892,2930.6,2930.0,0.1706]
[1644652998575,0.001,2930.5,2930.0,0.1706]
[1644652998975,0.7068405,2930.6,2930.0,0.1706]
[1644652998976,0.70280892,2930.6,2930.0,0.1706]
[1644652999576,0.70280892,2930.6,2930.1,0.00270651]
[1644653000378,0.70280892,2930.6,2930.0,0.1706]
[1644653000849,0.00837092,2930.5,2930.2,0.00837204]
[1644653001242,0.17997092,2930.5,2930.2,0.00837204]
[1644653001635,5.17997092,2930.5,2930.2,7.204e-05]
[1644653001836,0.00503158,2930.4,2928.7,0.1706]
[1644653002034,0.1706,2930.3,2930.2,0.00837204]
[1644653002638,0.1716,2930.3,2930.2,0.00837204]
[1644653002834,0.1716,2930.3,2929.2,0.25]
[1644653003035,0.00403158,2930.2,2928.3,1.10363]
[1644653003235,0.00403158,2930.2,2928.4,0.1706]
[1644653003236,0.00503158,2930.2,2928.4,0.1706]
[1644653003638,0.1706,2930.1,2928.4,0.1706]
[1644653003835,0.00403158,2930.0,2928.4,0.1706]
[1644653004035,0.00503158,2930.0,2928.4,0.1706]
[1644653004235,0.81468422,2929.2,2929.1,0.00270115]
[1644653004472,0.00503158,2930.0,2929.1,0.00270115]
[1644653004872,0.00503158,2930.0,2929.2,0.1706]
[1644653005070,0.00503158,2930.0,2929.1,0.00270115]
[1644653005271,0.00503158,2930.0,2928.5,1.45277148]
[1644653005474,0.00503158,2930.0,2929.5,0.00837258]
[1644653005672,0.83717275,2929.6,2929.5,0.00837258]
[1644653006474,0.83717275,2929.6,2928.6,0.1706]
[1644653006673,3.37797945,2929.5,2929.4,0.00837263]
[1644653006872,0.83717275,2929.6,2929.4,0.00837263]
[1644653007772,0.83717275,2929.6,2928.5,0.1706]
[1644653007973,0.00403158,2929.5,2929.4,0.00837268]
[1644653008239,0.83717275,2929.6,2929.4,0.00837268]
[1644653008842,0.83717275,2929.6,2928.5,0.1706]
[1644653009041,0.00403158,2929.5,2929.4,0.00837268]
[1644653009242,0.83717275,2929.6,2929.4,0.00837268]
[1644653010044,0.83717275,2929.6,2928.5,0.1706]
[1644653010045,0.88648251,2929.6,2928.5,0.1706]
[1644653010243,0.00403158,2929.5,2929.4,0.00837268]
[1644653010445,0.88648251,2929.6,2929.4,0.00837268]
[1644653011251,0.88648251,2929.6,2928.5,0.1706]
[1644653011446,0.00403158,2929.5,2929.4,0.00837268]
[1644653011646,0.88648251,2929.6,2929.4,0.00837268]
[1644653011847,0.04930976,2929.6,2929.4,0.00837268]
[1644653012476,0.04930976,2929.6,2928.9,3.79947596]
[1644653012676,0.04930976,2929.6,2929.4,0.00837268]
[1644653012977,0.00403158,2930.2,2929.6,2.14861951]
[1644653013174,0.01240127,2930.4,2929.7,0.1706]
[1644653013575,0.00403158,2930.4,2929.7,0.1706]
[1644653013783,0.00403158,2930.4,2929.7,1.1706]
[1644653013978,0.01240233,2930.4,2929.9,0.00837217]
[1644653014179,0.00837075,2930.4,2929.9,0.00837217]
[1644653014778,0.65291579,2930.5,2929.7,0.1706]
[1644653014979,0.00403158,2930.4,2929.7,0.1706]
[1644653015180,0.00837095,2930.4,2930.0,0.00837208]
[1644653016127,0.00503158,2930.8,2929.7,0.1706]
[1644653016336,0.6730378,2930.3,2930.1,0.00837203]
[1644653017131,0.67222967,2930.3,2930.1,0.00837203]
[1644653017329,0.67222967,2930.3,2929.6,0.09861951]
[1644653017533,0.00403158,2930.2,2930.1,0.00837203]
[1644653017732,0.67222967,2930.3,2930.1,0.00837203]
[1644653017929,0.84282967,2930.3,2930.1,0.00837203]
[1644653018535,0.7935146,2929.7,2929.6,0.09861951]
[1644653019878,4.85464873,2929.7,2929.6,0.09861951]
[1644653020076,4.85564873,2929.7,2929.6,0.09861951]
[1644653020276,3.25,2929.6,2929.5,0.00727692]
[1644653020478,7.26606139,2929.6,2929.5,0.00727692]
[1644653020875,7.26606139,2929.6,2928.9,0.25]
[1644653021077,0.001,2929.5,2929.4,0.00727717]
[1644653021277,0.001,2929.5,2928.2,3.9057]
[1644653021278,3.64734791,2929.5,2928.2,3.9057]
[1644653021492,3.64734791,2929.5,2927.8,3.35699509]
[1644653021493,8.251,2929.4,2928.4,0.25]
[1644653021680,8.251,2929.4,2927.8,0.02912418]
[1644653021681,5.0,2929.2,2927.8,0.02912418]
[1644653021879,5.0,2929.2,2927.9,1.45329054]
[1644653021880,0.1716,2929.1,2927.9,1.45329054]
[1644653022279,0.71468823,2927.7,2927.5,0.1706]
[1644653022580,0.71468823,2927.7,2927.6,1.45331704]
[1644653022981,0.71468823,2927.7,2927.6,0.1706]
[1644653023220,0.71468823,2927.7,2927.6,1.62391704]
[1644653023422,0.71468823,2927.7,2927.6,1.45331704]
[1644653023825,0.71468823,2927.7,2927.5,1.45331704]
[1644653024029,0.001,2928.6,2927.5,1.75331704]
[1644653024224,0.001,2928.8,2927.6,1.45331704]
[1644653024825,0.001,2928.8,2927.9,0.00836913]
[1644653024826,0.85429,2928.4,2927.9,0.00836913]
[1644653025025,0.83210589,2928.3,2927.9,0.00836913]
[1644653025226,0.83310589,2928.3,2927.9,0.00836913]
[1644653025629,0.83310589,2928.3,2927.4,0.1706]
[1644653025827,0.83310589,2928.3,2928.0,0.00836909]
[1644653026428,5.83310589,2928.3,2928.0,0.00836909]
[1644653026639,0.001,2928.2,2928.0,0.00836909]
[1644653026828,0.001,2928.2,2927.1,0.25]
[1644653026829,0.1706,2928.1,2927.1,0.25]
[1644653027073,0.8545,2928.0,2926.9,0.1706]
[1644653027273,0.8555,2928.0,2927.6,0.03348118]
[1644653028080,0.8555,2928.0,2927.3,0.1706]
[1644653028081,0.001,2928.0,2927.3,0.1706]
[1644653028278,0.1706,2928.1,2927.7,0.00836936]
[1644653029077,0.1716,2928.2,2927.7,0.00836936]
[1644653029284,0.001,2928.2,2927.3,0.1706]
[1644653029479,0.74874888,2927.5,2927.3,0.2040821]
[1644653030480,0.74874888,2927.5,2927.3,0.1706]
[1644653030724,0.74874888,2927.5,2927.3,0.17896973]
[1644653031727,0.74874888,2927.5,2927.3,0.1706]
[1644653031934,0.60323888,2927.7,2927.3,0.1706]
[1644653032128,0.1706,2927.9,2927.2,0.00078455]
[1644653032626,0.78026034,2927.3,2927.2,0.00078455]
[1644653033229,0.1716,2928.1,2927.4,0.00836391]
[1644653033230,1.02598,2928.1,2927.4,0.00836391]
[1644653033429,0.001,2928.0,2927.4,0.00836391]
[1644653033629,0.1706,2927.9,2927.4,0.00836391]
[1644653034029,0.1706,2927.9,2927.2,0.00078455]
[1644653034030,0.1716,2927.9,2927.2,0.00078455]
[1644653034230,0.70685481,2927.7,2927.2,0.00078455]
[1644653034478,0.70785481,2927.7,2927.5,0.00836382]
[1644653035278,0.0267455,2927.4,2927.2,0.00078455]
[1644653035477,0.8813555,2927.4,2927.2,0.00078455]
[1644653035676,0.1706,2927.3,2927.2,0.00078455]
[1644653036073,0.1716,2927.3,2927.2,0.00078455]
[1644653037674,0.1706,2927.3,2927.2,0.00078455]
[1644653038076,0.02593737,2927.4,2927.2,0.00078455]
[1644653038736,0.0286397,2927.5,2927.4,0.05187474]
[1644653040436,0.70685481,2927.7,2927.4,0.05187474]
[1644653041536,0.70685481,2927.7,2927.4,0.06023297]
[1644653042080,0.001,2927.8,2927.4,0.06023297]
[1644653042479,0.001,2927.8,2927.4,0.05187474]
[1644653042679,0.001,2927.8,2927.5,0.00835818]
[1644653043080,0.76587603,2927.7,2927.5,0.00835818]
[1644653043682,0.76587603,2927.7,2927.4,0.05187474]
[1644653043883,0.001,2927.8,2927.5,0.00835818]
[1644653044888,0.001,2927.8,2927.4,0.05187474]
[1644653045084,0.02876817,2927.9,2927.5,0.00835813]
[1644653045288,0.85419,2929.1,2927.5,0.00835813]
[1644653045289,8.4146,2928.7,2927.5,1.06893699]
[1644653045487,0.1706,2929.2,2927.6,4.95332256]
[1644653045744,3.6932,2929.5,2927.7,1.45332256]
[1644653045745,3.8638,2929.5,2927.7,1.45332256]
[1644653045938,3.6932,2929.5,2927.8,0.1706]
[1644653046137,0.78255923,2929.3,2927.9,1.45332256]
[1644653046335,0.78255923,2929.3,2928.0,0.1706]
[1644653046738,3.6932,2929.5,2928.0,3.6706]
[1644653046937,1.2432,2929.7,2928.1,1.45332256]
[1644653047138,1.2432,2929.7,2928.2,3.6706]
[1644653047340,1.2432,2929.7,2928.3,2.45332256]
[1644653047543,1.2432,2929.7,2928.4,3.84293009]
[1644653047739,0.64545479,2929.6,2928.5,1.45292306]
[1644653047939,0.64545479,2929.6,2928.6,0.1706]
[1644653048939,0.64545479,2929.6,2928.5,0.1706]
[1644653049339,0.64545479,2929.6,2928.5,0.4706]
[1644653049979,0.64545479,2929.6,2928.9,0.00836254]
[1644653050378,0.64645479,2929.6,2928.9,0.00836254]
[1644653050978,0.64645479,2929.6,2928.5,0.1706]
[1644653051176,0.64645479,2929.6,2929.1,0.00836235]
[1644653052181,0.64645479,2929.6,2928.4,0.1706]
[1644653052380,0.64645479,2929.6,2929.2,0.00836226]
[1644653053229,0.64645479,2929.6,2928.5,0.496]
[1644653053627,0.64645479,2929.6,2929.3,0.00836222]
[1644653054526,0.64645479,2929.6,2928.5,0.796]
[1644653054726,0.64645479,2929.6,2929.3,0.00836231]
[1644653055127,0.64545479,2929.6,2929.3,0.00836231]
[1644653055336,0.18400177,2930.0,2929.3,0.00836231]
[1644653055727,0.1756416,2930.0,2929.2,0.03347911]
[1644653055929,0.0050416,2930.0,2929.2,0.03347911]
[1644653056230,0.01340215,2930.0,2929.3,0.0083627]
[1644653056428,0.80541379,2929.6,2929.3,0.0083627]
[1644653056974,0.80541379,2929.6,2929.2,0.03347911]
[1644653057173,0.80541379,2929.6,2929.3,0.00836231]
[1644653057372,0.97701379,2929.6,2929.3,0.00836231]
[1644653057572,0.80541379,2929.6,2929.3,0.00836231]
[1644653058173,0.80541379,2929.6,2929.2,0.03347911]
[1644653058376,0.80541379,2929.6,2929.3,0.00820551]
[1644653059178,0.80460566,2929.6,2929.3,0.00820551]
[1644653059377,0.80460566,2929.6,2929.2,0.03347911]
[1644653059577,0.80460566,2929.6,2929.3,0.00820551]
[1644653060177,0.80460566,2929.6,2929.5,0.02816064]
[1644653061129,0.0132452,2930.0,2929.5,0.02816064]
[1644653061429,0.0092036,2930.0,2929.5,0.02816064]
[1644653061629,0.001,2930.0,2929.5,0.02816064]
[1644653062039,0.00883918,2930.0,2929.5,0.02816064]
[1644653062331,0.75975758,2929.8,2929.5,0.02816064]
[1644653065481,0.75975758,2929.8,2929.4,0.1706]
[1644653065679,0.75975758,2929.8,2929.3,0.03627849]
[1644653066480,0.75975758,2929.8,2929.3,0.02815846]
[1644653066880,0.75975758,2929.8,2929.3,0.03627829]
[1644653069024,0.75975758,2929.8,2929.3,0.02815846]
[1644653069225,0.75975758,2929.8,2929.3,0.03534943]
[1644653069626,0.00883901,2930.0,2929.3,0.03534943]
[1644653070225,0.00883901,2930.0,2929.2,0.02789603]
[1644653070226,0.001,2930.0,2929.2,0.02789603]
[1644653070425,0.00883921,2930.0,2929.3,0.00719097]
[1644653070648,0.89384736,2929.8,2929.3,0.00719097]
[1644653071426,0.001,2930.0,2929.2,0.02789603]
[1644653071627,0.00883901,2930.0,2929.3,0.00719097]
[1644653072375,0.66332399,2929.9,2929.3,0.00719097]
[1644653072578,0.66332399,2929.9,2929.2,0.02789603]
[1644653072579,0.66332399,2929.9,2929.4,0.1706]
[1644653072779,0.66332399,2929.9,2929.3,0.1706]
[1644653072979,0.66332399,2929.9,2929.3,0.17792691]
[1644653073880,0.66332399,2929.9,2929.3,0.1706]
[1644653075280,0.69906627,2929.9,2928.9,0.1706]
[1644653075930,0.69906627,2929.9,2928.8,0.496]
[1644653076137,0.03574228,2929.9,2928.9,0.1706]
[1644653076537,0.03574228,2929.9,2929.3,0.00836352]
[1644653077139,0.03574228,2929.9,2929.4,0.1706]
[1644653077337,0.03574228,2929.9,2929.4,0.6666]
[1644653077735,0.03574228,2929.9,2929.4,0.9666]
[1644653077936,0.03574228,2929.9,2929.5,0.3]
[1644653078137,0.03574228,2929.9,2929.6,0.1706]
[1644653079877,0.03574228,2929.9,2929.5,0.6]
[1644653080277,0.03574228,2929.9,2929.3,0.30772762]
[1644653080484,0.03574228,2929.9,2929.3,0.00772762]
[1644653081082,0.03574228,2929.9,2929.2,0.6]
[1644653081288,0.03574228,2929.9,2929.3,0.00772736]
[1644653081482,0.03574228,2929.9,2929.3,0.30772736]
[1644653081683,0.03574228,2929.9,2929.3,0.00772736]
[1644653082282,0.03574228,2929.9,2928.9,0.1706]
[1644653082482,0.03574228,2929.9,2929.3,0.00777013]
[1644653083088,0.03574228,2929.9,2929.3,0.00694709]
[1644653083344,0.03574228,2929.9,2929.1,0.3]
[1644653083543,0.85628965,2929.4,2928.7,1.6]
[1644653083747,0.001,2929.9,2929.5,1.54944194]
[1644653083953,0.03826421,2930.0,2929.5,1.54944194]
[1644653084142,0.03826421,2930.0,2929.6,0.1706]
[1644653085041,0.03826421,2930.0,2929.7,0.496]
[1644653085243,0.03826421,2930.0,2929.7,0.796]
[1644653085442,0.03569469,2929.8,2929.7,1.096]
[1644653086447,0.03569469,2929.8,2929.7,2.54850939]
[1644653086843,0.03569469,2929.8,2929.7,3.54850939]
[1644653087289,0.00836219,2930.0,2929.8,3.25]
[1644653087492,0.00836219,2930.0,2929.9,6.07956111]
[1644653087688,0.00836219,2930.0,2929.9,3.41908139]
[1644653087888,0.00836219,2930.0,2929.9,2.71908139]
[1644653088089,0.00836219,2930.0,2929.9,3.71908139]
[1644653088293,0.80902375,2930.8,2929.9,3.71908139]
[1644653088493,0.0040416,2930.7,2930.0,0.1706]
[1644653088693,0.0040416,2930.7,2930.0,1.6666]
[1644653088896,0.0040416,2930.7,2930.0,0.6666]
[1644653089099,0.0040416,2930.7,2930.0,1.6666]
[1644653089291,0.0040416,2930.7,2930.0,0.6666]
[1644653089693,0.0040416,2930.7,2930.1,1.45233]
[1644653089894,0.0040416,2930.7,2930.1,1.75233]
[1644653090096,0.0040416,2930.7,2930.1,0.6]
[1644653090295,0.0040416,2930.7,2930.2,0.3]
[1644653090494,0.77021101,2930.8,2930.2,0.3]
[1644653090742,0.0050416,2931.2,2930.0,0.6666]
[1644653090743,0.0040416,2930.7,2930.0,0.9666]
[1644653090936,0.00835379,2930.6,2930.1,1.45231108]
[1644653091138,0.00835379,2930.6,2930.2,0.1706]
[1644653091339,0.00835379,2930.6,2930.3,1.45231108]
[1644653091546,0.00835379,2930.6,2930.4,0.1706]
[1644653091743,1.2260416,2931.8,2930.4,0.6666]
[1644653091935,0.84826788,2931.3,2930.4,1.6666]
[1644653092138,0.00835379,2930.6,2930.4,1.9666]
[1644653092438,0.00835379,2930.6,2930.4,0.9666]
[1644653092639,0.00835379,2930.6,2930.4,0.4706]
[1644653093037,0.0040416,2931.2,2930.4,0.4706]
[1644653093238,0.00835375,2930.6,2930.4,0.4706]
[1644653094241,0.0040416,2931.2,2930.4,0.4706]
[1644653094477,0.00835375,2930.6,2930.4,0.4706]
[1644653095082,0.00835375,2930.6,2930.5,0.0383084]
[1644653095581,0.0083537,2930.7,2930.5,0.0383084]
[1644653096586,0.89324631,2930.8,2930.5,0.0383084]
[1644653096792,0.00835365,2930.7,2930.5,0.0383084]
[1644653097787,0.89324631,2930.8,2930.5,0.0383084]
[1644653097990,0.00835365,2930.7,2930.5,0.0383084]
[1644653099029,0.89324631,2930.8,2930.5,0.0383084]
[1644653099231,0.00835365,2930.7,2930.5,0.0383084]
[1644653100130,0.89324631,2930.8,2930.5,0.0383084]
[1644653100529,0.00835365,2930.7,2930.5,0.0383084]
[1644653101334,0.0050416,2931.7,2930.5,0.0383084]
[1644653101535,0.1705,2931.6,2930.5,0.0383084]
[1644653101735,0.00835365,2930.7,2930.5,0.0383084]
[1644653102484,0.001,2931.7,2930.5,0.0383084]
[1644653102485,2.16627968,2932.7,2930.6,5.6666]
[1644653102682,0.00404491,2931.5,2931.3,0.01253273]
[1644653102884,0.00404491,2932.6,2931.4,0.6665]
[1644653103177,3.0699,2933.0,2931.4,0.9665]
[1644653103178,0.00404491,2932.9,2931.4,0.9665]
[1644653103381,0.00404491,2932.9,2931.4,1.0945]
[1644653103682,0.00404491,2932.9,2931.4,1.096]
[1644653103880,0.62771743,2931.9,2931.4,0.796]
[1644653104881,0.62771743,2931.9,2931.4,0.496]
[1644653105085,0.62771743,2931.9,2931.0,0.1705]
[1644653105283,0.00404491,2931.8,2931.1,0.00271312]
[1644653105484,12.69617968,2933.0,2931.1,0.00271312]
[1644653105485,0.00404491,2932.7,2931.2,0.1705]
[1644653105736,0.00404491,2932.9,2931.3,0.496]
[1644653105925,0.00404491,2932.9,2931.4,0.1705]
[1644653106126,0.00404491,2932.9,2931.5,0.496]
[1644653106325,0.80306581,2932.2,2931.5,0.496]
[1644653106527,0.00404491,2932.1,2931.6,3.5]
[1644653106729,0.0083443,2932.3,2931.7,0.496]
[1644653106931,0.0083443,2932.3,2931.8,6.3685]
[1644653107134,0.0083443,2932.3,2931.9,0.496]
[1644653107329,0.0083443,2932.3,2932.0,0.1705]
[1644653107631,0.03337218,2932.7,2932.0,0.1705]
[1644653107632,0.00787409,2932.2,2932.1,0.496]
[1644653107828,0.00787409,2932.2,2932.1,0.796]
[1644653108231,7.409e-05,2932.2,2932.1,1.096]
[1644653108531,7.409e-05,2932.2,2932.1,1.2272]
[1644653108731,0.80962561,2932.7,2932.1,1.228]
[1644653108931,0.04092649,2933.5,2932.2,0.1705]
[1644653109131,0.04092649,2933.5,2932.3,0.496]
[1644653109477,0.04035807,2933.4,2932.4,0.1703]
[1644653109684,0.04035807,2933.4,2932.3,0.796]
[1644653109685,0.04035807,2933.4,2932.3,0.3]
[1644653109879,0.04035807,2933.4,2932.4,0.6663]
[1644653110080,0.77165124,2933.0,2932.4,0.6663]
[1644653110280,0.77165124,2933.0,2932.4,0.9663]
[1644653110682,0.77165124,2933.0,2932.4,1.2663]
[1644653111484,0.04035807,2933.4,2932.4,2.11877]
[1644653111885,0.04035807,2933.4,2932.4,1.2663]
[1644653112484,0.6401303,2933.0,2932.4,1.2663]
[1644653113091,0.00833605,2933.0,2932.4,1.2663]
[1644653113532,0.04035807,2933.4,2932.4,1.2663]
[1644653113732,0.00833623,2932.8,2932.4,1.2663]
[1644653114131,0.00833623,2932.8,2932.4,1.2703]
[1644653114533,0.00833623,2932.8,2932.5,4.4301581]
[1644653114732,0.04735807,2933.4,2932.6,0.9663]
[1644653114938,0.04735807,2933.4,2932.6,1.9663]
[1644653115134,0.04735807,2933.4,2932.6,1.2663]
[1644653115336,0.04735807,2933.4,2932.6,1.30543899]
[1644653116132,0.04735807,2933.4,2932.6,2.15780519]
[1644653116735,0.04735807,2933.4,2932.8,1.7044341]
[1644653116976,0.04735807,2933.4,2933.0,1.70435]
[1644653117184,0.04735807,2933.4,2933.1,0.496]
[1644653117382,0.00832847,2933.2,2932.9,1.6]
[1644653117588,0.00832847,2933.2,2933.0,0.496]
[1644653118181,0.04735807,2933.4,2933.0,0.496]
[1644653118585,0.00832847,2933.2,2932.8,0.27639994]
[1644653119182,0.00832847,2933.2,2933.0,0.004]
[1644653119386,0.04735807,2933.4,2933.0,0.004]
[1644653119387,0.63584784,2933.1,2933.0,0.004]
[1644653119784,0.64417641,2933.1,2933.0,0.004]
[1644653120584,0.63584784,2933.1,2933.0,0.004]
[1644653124235,0.04735807,2933.4,2933.0,0.004]
[1644653124477,0.00832062,2933.2,2933.0,0.004]
[1644653125485,0.76314402,2933.2,2933.0,0.004]
[1644653125685,0.77147249,2933.2,2933.0,0.004]
[1644653126285,0.85255,2934.5,2933.2,3.25]
[1644653126488,1.37480097,2935.1,2933.0,0.004]
[1644653126489,0.0040497,2933.7,2933.3,4.5]
[1644653126692,4.80671097,2935.1,2933.3,1.3]
[1644653126693,0.0040497,2934.4,2933.3,1.3]
[1644653126883,5.0,2934.9,2933.3,0.6]
[1644653127083,0.0040497,2934.8,2933.2,1.3]
[1644653127482,0.83256454,2934.0,2933.2,1.3]
[1644653127684,0.0040497,2933.9,2933.2,0.3]
[1644653127883,0.0040497,2933.9,2933.2,0.1703]
[1644653128090,0.0040497,2933.9,2933.3,0.1703]
[1644653128333,0.83256454,2934.0,2933.3,0.1703]
[1644653128531,0.83256454,2934.0,2933.1,0.4703]
[1644653128734,0.72989055,2933.4,2933.0,0.004]
[1644653128934,0.72989055,2933.4,2933.0,0.1743]
[1644653129332,0.00560269,2933.8,2933.3,0.004]
[1644653130332,0.79266404,2933.5,2933.4,0.03949289]
[1644653130533,0.79266404,2933.5,2933.4,0.04781388]
[1644653131437,0.79266404,2933.5,2933.4,0.03949289]
[1644653131636,0.001,2934.1,2933.4,0.03949289]
[1644653131834,0.00831954,2933.8,2933.4,0.03949289]
[1644653132676,0.001,2934.1,2933.4,0.03949289]
[1644653132677,0.78257264,2933.7,2933.4,0.03949289]
[1644653132877,0.78257264,2933.7,2933.5,0.00832094]
[1644653133779,0.78257264,2933.7,2933.4,0.03949289]
[1644653134178,0.78257264,2933.7,2933.5,0.00832094]
[1644653135080,0.78257264,2933.7,2933.4,0.04349289]
[1644653135379,0.78257264,2933.7,2933.5,0.00832094]
[1644653136225,0.78257264,2933.7,2933.4,0.04349289]
[1644653136624,0.78257264,2933.7,2933.5,0.00832094]
[1644653136826,3.31354337,2933.6,2933.5,0.00832094]
[1644653137027,3.31454337,2933.6,2933.5,0.00832094]
[1644653137427,3.31454337,2933.6,2933.4,0.04349289]
[1644653137633,0.001,2933.5,2933.4,0.04349289]
[1644653137830,0.001,2933.5,2933.4,0.05181388]
[1644653138230,3.41235244,2933.6,2933.4,0.05181388]
[1644653138442,0.001,2933.5,2933.4,0.05181388]
[1644653138633,0.78257264,2933.7,2933.4,0.05181388]
[1644653138831,0.78257264,2933.7,2933.4,0.04349289]
[1644653139031,0.78357264,2933.7,2933.4,0.05181393]
[1644653139232,0.78257264,2933.7,2933.4,0.05181393]
[1644653139681,0.78257264,2933.7,2933.5,0.004]
[1644653140283,0.78257264,2933.7,2933.5,0.1743]
[1644653140484,0.78257264,2933.7,2933.5,0.004]
[1644653140882,0.00931973,2933.8,2933.5,0.004]
[1644653141089,0.001,2933.8,2933.5,0.004]
[1644653141282,0.00931983,2933.8,2933.5,0.01232094]
[1644653142283,0.001,2933.8,2933.5,0.004]
[1644653142487,0.65543161,2933.8,2933.5,0.0123209]
[1644653143533,0.64711169,2933.8,2933.5,0.004]
[1644653143740,0.65543161,2933.8,2933.5,0.0123209]
[1644653144738,0.001,2933.8,2933.5,0.1743]
[1644653144939,0.00831992,2933.8,2933.5,0.1826209]
[1644653145537,0.00831992,2933.8,2933.7,0.02256562]
[1644653145937,0.76930136,2934.1,2933.7,0.02256562]
[1644653146139,0.00831997,2933.9,2933.7,0.02256562]
[1644653147080,0.76425166,2934.1,2933.7,0.02256562]
[1644653147280,0.00831993,2933.9,2933.7,0.02256562]
[1644653148286,0.76425166,2934.1,2933.7,0.02256562]
[1644653148485,0.00831993,2933.9,2933.7,0.02256562]
[1644653148685,0.00831993,2933.9,2933.7,0.19286562]
[1644653148890,0.00831993,2933.9,2933.7,0.02256562]
[1644653149484,0.76425166,2934.1,2933.7,0.02256562]
[1644653149687,0.00831993,2933.9,2933.7,0.02256562]
[1644653149885,0.00831993,2933.9,2933.7,0.02656562]
[1644653150287,0.00831993,2933.9,2933.7,0.00283421]
[1644653151848,0.76425166,2934.1,2933.7,0.00283421]
[1644653152248,0.0050497,2934.2,2933.7,0.00283421]
[1644653152249,0.00831993,2933.9,2933.7,0.00283421]
[1644653153049,0.0050497,2934.5,2933.7,0.00283421]
[1644653153248,0.84804576,2934.4,2933.7,0.00283421]
[1644653153449,0.00831993,2933.9,2933.7,0.00283421]
[1644653153852,0.00831993,2933.9,2933.8,0.1703]
[1644653154254,0.0040497,2934.3,2933.8,0.1703]
[1644653154490,0.00831988,2934.0,2933.8,0.1703]
[1644653155284,0.00831988,2934.0,2933.8,0.19688869]
[1644653155482,0.0040497,2934.3,2933.8,0.19688869]
[1644653155689,0.00831983,2934.0,2933.8,0.19688869]
[1644653156788,0.0040497,2934.3,2933.8,0.19688869]
[1644653156988,0.00831983,2934.0,2933.8,0.19688869]
[1644653157992,0.0040497,2934.3,2933.8,0.19688869]
[1644653158235,0.00831983,2934.0,2933.8,0.19688869]
[1644653158638,0.00831983,2934.0,2933.9,0.496]
[1644653159037,0.0050497,2934.6,2933.9,0.796]
[1644653159244,0.00831978,2934.1,2933.9,0.796]
[1644653159638,0.00831978,2934.1,2933.9,0.496]
[1644653159839,0.00831978,2934.1,2933.9,0.52263843]
[1644653160040,0.00831978,2934.1,2933.9,0.82263843]
[1644653160240,0.0050497,2935.0,2933.9,0.52263843]
[1644653160442,0.00831974,2934.1,2933.9,0.52263843]
[1644653161240,0.00831974,2934.1,2933.9,0.02663843]
[1644653161442,0.0040497,2934.7,2933.9,0.02663843]
[1644653161643,0.00831974,2934.1,2933.9,0.02663843]
[1644653162678,0.0040497,2934.7,2933.9,0.02663843]
[1644653162880,0.00831974,2934.1,2933.9,0.02663843]
[1644653163884,0.0040497,2934.7,2933.9,0.02663843]
[1644653164085,0.00831974,2934.1,2933.9,0.02663843]
[1644653164983,0.00831974,2934.1,2933.8,0.1703]
[1644653165185,0.0040497,2934.7,2933.8,0.1703]
[1644653165484,0.00831974,2934.1,2933.8,1.6663]
[1644653165727,0.00831974,2934.1,2933.8,1.9663]
[1644653165932,3.22263016,2935.1,2933.9,3.58756123]
[1644653166132,0.00404893,2935.0,2933.8,1.9663]
[1644653166333,0.00404893,2935.0,2933.8,0.9663]
[1644653166533,0.70555499,2934.8,2933.8,0.9663]
[1644653166735,0.00404893,2934.7,2933.8,0.9663]
[1644653168235,0.00404893,2934.7,2933.9,4.23501035]
[1644653168439,0.00404893,2934.7,2934.0,1.1703]
[1644653168640,0.00404893,2935.0,2934.1,3.96664588]
[1644653168839,0.01787909,2935.1,2934.2,1.6663]
[1644653169039,0.01383016,2935.1,2934.2,1.6663]
[1644653169338,0.01383016,2935.1,2934.3,0.4384]
[1644653169582,0.01383016,2935.1,2934.4,0.6663]
[1644653169788,0.01383016,2935.1,2934.4,0.9663]
[1644653170382,0.00832025,2934.9,2934.5,0.00832151]
[1644653170783,0.00832025,2934.9,2934.5,3.75854576]
[1644653171184,0.01383016,2935.1,2934.6,1.0]
[1644653171387,0.0083203,2934.8,2934.7,3.67855267]
[1644653171684,0.0083203,2934.8,2934.7,0.496]
[1644653171983,0.0083203,2934.8,2934.7,1.496]
[1644653172184,0.0083203,2934.8,2934.7,0.496]
[1644653172392,0.01383016,2935.1,2934.7,4.14565897]
[1644653172584,0.01383016,2935.1,2934.8,3.8695]
[1644653172783,0.01383016,2935.1,2934.9,0.796]
[1644653172987,0.01383016,2935.1,2935.0,0.1703]
[1644653173233,0.01383016,2935.1,2935.0,0.9663]
[1644653174737,0.01383016,2935.1,2935.0,0.6663]
[1644653174942,0.01383016,2935.1,2935.0,0.496]
[1644653175338,0.01383016,2935.1,2935.0,0.9663]
[1644653177683,0.01383016,2935.1,2935.0,4.70093335]
[1644653177882,0.01383016,2935.1,2935.0,1.9663]
[1644653178284,0.01383016,2935.1,2935.0,0.9663]
[1644653180092,0.01383016,2935.1,2935.0,0.99266512]
[1644653181330,0.01383016,2935.1,2935.0,5.54724258]
[1644653181532,0.01383016,2935.1,2935.0,4.54724258]
[1644653181739,0.01383016,2935.1,2935.0,1.99266512]
[1644653181939,0.00504893,2936.5,2935.2,0.42575]
[1644653182138,0.00504893,2936.5,2935.6,0.851465]
[1644653182337,0.00504893,2936.5,2935.6,0.85149]
[1644653182536,0.01204893,2936.7,2935.7,0.3]
[1644653182742,0.77262596,2936.4,2935.7,0.3]
[1644653182935,1.13854893,2936.7,2935.7,0.3]
[1644653183136,1.13854893,2936.7,2935.5,1.096]